[Event "Titled Tuesday Blitz June 27 Late 2023"]
[White "Adewumi, Tanitoluwa"]
[Black "Mazurkiewicz, Michal"]
[WhiteFideId "30966396"]
[BlackFideId "1124943"]
[WhiteElo "2598"]
[BlackElo "2453"]
[Result "1-0"]
[Round "11"]
[TimeControl "180+2"]
[Date "2023.06.27"]
[WhiteClock "0:00:04"]
[BlackClock "0:00:00"]
[Board "58"]

1. e4 {[%clk 0:02:28]}  d6 {[%clk 0:02:59]} 2. d4 {[%clk 0:02:28]}  Nf6 {[%clk 0:02:56]} 3. Nc3 {[%clk 0:02:28]}  c6 {[%clk 0:02:54]} 4. f4 {[%clk 0:02:26]}  Qb6 {[%clk 0:02:53]} 5. Nf3 {[%clk 0:02:25]}  Bg4 {[%clk 0:02:50]} 6. Be2 {[%clk 0:02:19]}  e6 {[%clk 0:02:50]} 7. h3 {[%clk 0:02:16]}  Bxf3 {[%clk 0:02:50]} 8. Bxf3 {[%clk 0:02:17]}  d5 {[%clk 0:02:50]} 9. e5 {[%clk 0:02:17]}  Nfd7 {[%clk 0:02:51]} 10. Na4 {[%clk 0:02:09]}  Qa5+ {[%clk 0:02:44]} 11. c3 {[%clk 0:01:20]}  b5 {[%clk 0:02:43]} 12. Nc5 {[%clk 0:01:20]}  Nxc5 {[%clk 0:02:36]} 13. b4 {[%clk 0:01:16]}  Qd8 {[%clk 0:01:53]} 14. bxc5 {[%clk 0:01:12]}  Qh4+ {[%clk 0:01:53]} 15. Kf1 {[%clk 0:01:06]}  Nd7 {[%clk 0:01:52]} 16. a4 {[%clk 0:01:04]}  Rb8 {[%clk 0:00:59]} 17. axb5 {[%clk 0:01:01]}  Rxb5 {[%clk 0:01:00]} 18. Rxa7 {[%clk 0:00:57]}  Be7 {[%clk 0:01:00]} 19. Qe1 {[%clk 0:00:39]}  Qxe1+ {[%clk 0:00:36]} 20. Kxe1 {[%clk 0:00:40]}  Bh4+ {[%clk 0:00:37]} 21. Kd1 {[%clk 0:00:34]}  Ke7 {[%clk 0:00:36]} 22. Kc2 {[%clk 0:00:29]}  Bg3 {[%clk 0:00:32]} 23. h4 {[%clk 0:00:20]}  Rhb8 {[%clk 0:00:20]} 24. Rh3 {[%clk 0:00:15]}  Bf2 {[%clk 0:00:20]} 25. g4 {[%clk 0:00:14]}  Ke8 {[%clk 0:00:11]} 26. h5 {[%clk 0:00:14]}  Rb1 {[%clk 0:00:09]} 27. Rh2 {[%clk 0:00:11]}  Bg3 {[%clk 0:00:08]} 28. Rg2 {[%clk 0:00:11]}  Rxc1+ {[%clk 0:00:03]} 29. Kxc1 {[%clk 0:00:11]}  Bxf4+ {[%clk 0:00:04]} 30. Kc2 {[%clk 0:00:11]}  h6 {[%clk 0:00:03]} 31. Rg1 {[%clk 0:00:08]}  g6 {[%clk 0:00:01]} 32. Rga1 {[%clk 0:00:05]}  gxh5 {[%clk 0:00:01]} 33. gxh5 {[%clk 0:00:06]}  Nf8 {[%clk 0:00:00]} 34. Rc7 {[%clk 0:00:04]} 1-0


[Site "https://www.chess.com"]

[Event "Titled Tuesday Blitz June 27 Late 2023"]
[White "JERO-8914"]
[Black "Ambartsumova, Karina"]
[BlackFideId "4166299"]
[WhiteElo "2450"]
[BlackElo "2556"]
[Result "0-1"]
[Round "11"]
[TimeControl "180+2"]
[Date "2023.06.27"]
[WhiteClock "0:00:14"]
[BlackClock "0:00:34"]
[Board "60"]

1. c4 {[%clk 0:02:52]}  Nf6 {[%clk 0:02:59]} 2. Nc3 {[%clk 0:02:52]}  g6 {[%clk 0:02:59]} 3. d4 {[%clk 0:02:52]}  Bg7 {[%clk 0:02:59]} 4. e4 {[%clk 0:02:53]}  d6 {[%clk 0:02:59]} 5. Be2 {[%clk 0:02:53]}  O-O {[%clk 0:03:00]} 6. Nf3 {[%clk 0:02:52]}  a6 {[%clk 0:03:00]} 7. h3 {[%clk 0:02:50]}  c6 {[%clk 0:03:01]} 8. O-O {[%clk 0:02:50]}  b5 {[%clk 0:03:01]} 9. b3 {[%clk 0:02:47]}  b4 {[%clk 0:02:59]} 10. Na4 {[%clk 0:02:46]}  Nxe4 {[%clk 0:03:00]} 11. Bb2 {[%clk 0:02:44]}  d5 {[%clk 0:02:53]} 12. Re1 {[%clk 0:02:43]}  a5 {[%clk 0:02:47]} 13. c5 {[%clk 0:02:40]}  Ba6 {[%clk 0:02:44]} 14. Nb6 {[%clk 0:02:40]}  Ra7 {[%clk 0:02:43]} 15. Bxa6 {[%clk 0:02:32]}  Nxa6 {[%clk 0:02:44]} 16. a3 {[%clk 0:02:26]}  Naxc5 {[%clk 0:02:35]} 17. axb4 {[%clk 0:02:17]}  Nxb3 {[%clk 0:02:20]} 18. Qxb3 {[%clk 0:02:11]}  Qxb6 {[%clk 0:02:20]} 19. Qa2 {[%clk 0:01:51]}  Qxb4 {[%clk 0:02:08]} 20. Ba3 {[%clk 0:01:47]}  Qb7 {[%clk 0:01:58]} 21. Rab1 {[%clk 0:01:37]}  Qd7 {[%clk 0:01:57]} 22. Rec1 {[%clk 0:01:33]}  Rb7 {[%clk 0:01:47]} 23. Rxb7 {[%clk 0:01:26]}  Qxb7 {[%clk 0:01:48]} 24. Qc2 {[%clk 0:01:26]}  Rc8 {[%clk 0:01:45]} 25. Qa4 {[%clk 0:01:17]}  Qc7 {[%clk 0:01:04]} 26. Qc2 {[%clk 0:01:04]}  Nd6 {[%clk 0:01:02]} 27. Re1 {[%clk 0:00:56]}  Bf6 {[%clk 0:00:57]} 28. Rb1 {[%clk 0:00:54]}  Nc4 {[%clk 0:00:57]} 29. Bc5 {[%clk 0:00:54]}  Rb8 {[%clk 0:00:56]} 30. Ra1 {[%clk 0:00:47]}  Rb2 {[%clk 0:00:53]} 31. Qc3 {[%clk 0:00:46]}  Qf4 {[%clk 0:00:51]} 32. g3 {[%clk 0:00:40]}  Qf5 {[%clk 0:00:48]} 33. Kg2 {[%clk 0:00:37]}  Kg7 {[%clk 0:00:42]} 34. Rxa5 {[%clk 0:00:36]}  Rc2 {[%clk 0:00:41]} 35. Qb4 {[%clk 0:00:14]}  Ne3+ {[%clk 0:00:34]} 0-1


[Site "https://www.chess.com"]

[Event "Titled Tuesday Blitz June 27 Late 2023"]
[White "micke12a"]
[Black "D`Arruda, Ricardo D."]
[BlackFideId "100692"]
[WhiteElo "2375"]
[BlackElo "2545"]
[Result "0-1"]
[Round "11"]
[TimeControl "180+2"]
[Date "2023.06.27"]
[WhiteClock "0:02:03"]
[BlackClock "0:01:55"]
[Board "61"]

1. e4 {[%clk 0:02:55]}  c5 {[%clk 0:02:32]} 2. Nf3 {[%clk 0:02:49]}  Nc6 {[%clk 0:02:32]} 3. d4 {[%clk 0:02:47]}  cxd4 {[%clk 0:02:33]} 4. Nxd4 {[%clk 0:02:48]}  e5 {[%clk 0:02:33]} 5. Nb5 {[%clk 0:02:46]}  a6 {[%clk 0:02:34]} 6. Nd6+ {[%clk 0:02:46]}  Bxd6 {[%clk 0:02:34]} 7. Qxd6 {[%clk 0:02:47]}  Qe7 {[%clk 0:02:35]} 8. Qd1 {[%clk 0:02:47]}  Nf6 {[%clk 0:02:34]} 9. Nc3 {[%clk 0:02:47]}  d6 {[%clk 0:02:35]} 10. Bg5 {[%clk 0:02:47]}  Be6 {[%clk 0:02:35]} 11. Qd2 {[%clk 0:02:39]}  O-O {[%clk 0:02:34]} 12. O-O-O {[%clk 0:02:39]}  Rfd8 {[%clk 0:02:34]} 13. f3 {[%clk 0:02:39]}  h6 {[%clk 0:02:33]} 14. Bxf6 {[%clk 0:02:37]}  Qxf6 {[%clk 0:02:34]} 15. Nd5 {[%clk 0:02:36]}  Bxd5 {[%clk 0:02:34]} 16. Qxd5 {[%clk 0:02:36]}  Rac8 {[%clk 0:02:33]} 17. a3 {[%clk 0:02:32]}  Nd4 {[%clk 0:02:25]} 18. Bc4 {[%clk 0:02:31]}  Rc5 {[%clk 0:02:20]} 19. Rxd4 {[%clk 0:02:08]}  exd4 {[%clk 0:02:12]} 20. e5 {[%clk 0:02:03]}  Qg5+ {[%clk 0:01:55]} 0-1


[Site "https://www.chess.com"]

[Event "Titled Tuesday Blitz June 27 Late 2023"]
[White "Hajiyev, Kanan"]
[Black "Bernado Lopez, Roger"]
[WhiteFideId "13404148"]
[BlackFideId "24585009"]
[WhiteElo "2542"]
[BlackElo "2375"]
[Result "1-0"]
[Round "11"]
[TimeControl "180+2"]
[Date "2023.06.27"]
[WhiteClock "0:00:12"]
[BlackClock "0:00:03"]
[Board "62"]

1. d4 {[%clk 0:02:08]}  d5 {[%clk 0:02:58]} 2. Nf3 {[%clk 0:02:09]}  Nf6 {[%clk 0:02:57]} 3. c4 {[%clk 0:02:10]}  e6 {[%clk 0:02:56]} 4. cxd5 {[%clk 0:02:11]}  exd5 {[%clk 0:02:56]} 5. Nc3 {[%clk 0:02:12]}  c6 {[%clk 0:02:55]} 6. Bg5 {[%clk 0:02:13]}  Bf5 {[%clk 0:02:55]} 7. Rc1 {[%clk 0:02:10]}  Be7 {[%clk 0:02:49]} 8. e3 {[%clk 0:02:08]}  Nbd7 {[%clk 0:02:48]} 9. Nh4 {[%clk 0:02:09]}  Be6 {[%clk 0:02:45]} 10. Nf3 {[%clk 0:02:08]}  Bf5 {[%clk 0:02:44]} 11. Nh4 {[%clk 0:02:08]}  Be6 {[%clk 0:02:44]} 12. Bd3 {[%clk 0:02:09]}  h6 {[%clk 0:02:41]} 13. Bxf6 {[%clk 0:02:09]}  Nxf6 {[%clk 0:02:41]} 14. Nf5 {[%clk 0:02:10]}  O-O {[%clk 0:02:30]} 15. Nxe7+ {[%clk 0:02:10]}  Qxe7 {[%clk 0:02:31]} 16. O-O {[%clk 0:02:11]}  Rfe8 {[%clk 0:02:29]} 17. a3 {[%clk 0:02:09]}  a6 {[%clk 0:02:26]} 18. Qf3 {[%clk 0:02:06]}  Bg4 {[%clk 0:02:24]} 19. Qg3 {[%clk 0:02:05]}  Qd7 {[%clk 0:02:07]} 20. Na4 {[%clk 0:02:04]}  Qd8 {[%clk 0:01:56]} 21. Nc5 {[%clk 0:02:01]}  Bc8 {[%clk 0:01:52]} 22. b4 {[%clk 0:01:59]}  Qe7 {[%clk 0:01:40]} 23. h3 {[%clk 0:01:57]}  Nh5 {[%clk 0:01:37]} 24. Qf3 {[%clk 0:01:56]}  Nf6 {[%clk 0:01:36]} 25. a4 {[%clk 0:01:53]}  Nd7 {[%clk 0:01:32]} 26. a5 {[%clk 0:01:51]}  Nf6 {[%clk 0:01:24]} 27. Kh1 {[%clk 0:01:43]}  Ne4 {[%clk 0:01:21]} 28. Bxe4 {[%clk 0:01:38]}  dxe4 {[%clk 0:01:22]} 29. Qf4 {[%clk 0:01:36]}  g5 {[%clk 0:01:21]} 30. Qg3 {[%clk 0:01:27]}  Kh7 {[%clk 0:01:20]} 31. Rc3 {[%clk 0:01:21]}  h5 {[%clk 0:01:20]} 32. f3 {[%clk 0:01:17]}  h4 {[%clk 0:01:17]} 33. Qf2 {[%clk 0:01:10]}  exf3 {[%clk 0:01:14]} 34. Qxf3 {[%clk 0:01:11]}  f5 {[%clk 0:01:13]} 35. Qh5+ {[%clk 0:01:08]}  Kg7 {[%clk 0:01:13]} 36. Nd3 {[%clk 0:01:04]}  Rh8 {[%clk 0:01:12]} 37. Qe2 {[%clk 0:01:01]}  Be6 {[%clk 0:01:12]} 38. Rc5 {[%clk 0:01:00]}  Raf8 {[%clk 0:01:10]} 39. e4 {[%clk 0:00:48]}  Bd5 {[%clk 0:01:09]} 40. Rxd5 {[%clk 0:00:41]}  cxd5 {[%clk 0:01:08]} 41. e5 {[%clk 0:00:41]}  f4 {[%clk 0:00:51]} 42. Qg4 {[%clk 0:00:40]}  Kh6 {[%clk 0:00:49]} 43. Nc5 {[%clk 0:00:31]}  Qf7 {[%clk 0:00:44]} 44. e6 {[%clk 0:00:19]}  Qf6 {[%clk 0:00:43]} 45. Nd7 {[%clk 0:00:18]}  Qxd4 {[%clk 0:00:41]} 46. Nxf8 {[%clk 0:00:16]}  Rxf8 {[%clk 0:00:41]} 47. e7 {[%clk 0:00:17]}  Re8 {[%clk 0:00:40]} 48. Qe6+ {[%clk 0:00:17]}  Kg7 {[%clk 0:00:38]} 49. Rc1 {[%clk 0:00:17]}  Qf6 {[%clk 0:00:35]} 50. Qxd5 {[%clk 0:00:13]}  Rxe7 {[%clk 0:00:33]} 51. Kh2 {[%clk 0:00:13]}  f3 {[%clk 0:00:31]} 52. Qxf3 {[%clk 0:00:10]}  Qxf3 {[%clk 0:00:31]} 53. gxf3 {[%clk 0:00:11]}  Re2+ {[%clk 0:00:30]} 54. Kg1 {[%clk 0:00:11]}  Kf6 {[%clk 0:00:28]} 55. Rc7 {[%clk 0:00:11]}  Re7 {[%clk 0:00:27]} 56. Rc5 {[%clk 0:00:10]}  Re5 {[%clk 0:00:23]} 57. Rc7 {[%clk 0:00:09]}  Rb5 {[%clk 0:00:23]} 58. Rc4 {[%clk 0:00:09]}  Ke5 {[%clk 0:00:19]} 59. Kf2 {[%clk 0:00:09]}  Rd5 {[%clk 0:00:13]} 60. Rg4 {[%clk 0:00:09]}  Kf5 {[%clk 0:00:11]} 61. f4 {[%clk 0:00:07]}  gxf4 {[%clk 0:00:05]} 62. Rxh4 {[%clk 0:00:07]}  Ke4 {[%clk 0:00:04]} 63. Rh7 {[%clk 0:00:07]}  Rd2+ {[%clk 0:00:05]} 64. Ke1 {[%clk 0:00:07]}  Rh2 {[%clk 0:00:03]} 65. Re7+ {[%clk 0:00:07]}  Kf3 {[%clk 0:00:03]} 66. Rxb7 {[%clk 0:00:07]}  Rxh3 {[%clk 0:00:02]} 67. Rb6 {[%clk 0:00:08]}  Rh1+ {[%clk 0:00:02]} 68. Kd2 {[%clk 0:00:08]}  Rh2+ {[%clk 0:00:02]} 69. Kd3 {[%clk 0:00:08]}  Kg2 {[%clk 0:00:01]} 70. Rg6+ {[%clk 0:00:08]}  Kf1 {[%clk 0:00:02]} 71. Rxa6 {[%clk 0:00:09]}  f3 {[%clk 0:00:02]} 72. Rf6 {[%clk 0:00:09]}  f2 {[%clk 0:00:02]} 73. a6 {[%clk 0:00:10]}  Ke1 {[%clk 0:00:02]} 74. b5 {[%clk 0:00:08]}  Rh3+ {[%clk 0:00:02]} 75. Kc4 {[%clk 0:00:08]}  f1=Q+ {[%clk 0:00:01]} 76. Rxf1+ {[%clk 0:00:09]}  Kxf1 {[%clk 0:00:02]} 77. b6 {[%clk 0:00:10]}  Rh4+ {[%clk 0:00:02]} 78. Kd3 {[%clk 0:00:09]}  Rh3+ {[%clk 0:00:02]} 79. Ke4 {[%clk 0:00:09]}  Rh4+ {[%clk 0:00:02]} 80. Kf5 {[%clk 0:00:10]}  Rb4 {[%clk 0:00:02]} 81. a7 {[%clk 0:00:09]}  Rxb6 {[%clk 0:00:03]} 82. a8=Q {[%clk 0:00:10]}  Rb5+ {[%clk 0:00:02]} 83. Ke4 {[%clk 0:00:10]}  Rb4+ {[%clk 0:00:02]} 84. Kd3 {[%clk 0:00:10]}  Rf4 {[%clk 0:00:02]} 85. Qh1+ {[%clk 0:00:09]}  Kf2 {[%clk 0:00:02]} 86. Qh2+ {[%clk 0:00:10]}  Kf3 {[%clk 0:00:02]} 87. Qh3+ {[%clk 0:00:10]}  Kf2 {[%clk 0:00:03]} 88. Qe3+ {[%clk 0:00:10]}  Kg2 {[%clk 0:00:01]} 89. Qxf4 {[%clk 0:00:10]}  Kh1 {[%clk 0:00:01]} 90. Qg4 {[%clk 0:00:10]}  Kh2 {[%clk 0:00:01]} 91. Ke3 {[%clk 0:00:10]}  Kh1 {[%clk 0:00:02]} 92. Kf2 {[%clk 0:00:11]}  Kh2 {[%clk 0:00:03]} 93. Qh4# {[%clk 0:00:12]} 1-0


[Site "https://www.chess.com"]

[Event "Titled Tuesday Blitz June 27 Late 2023"]
[White "The_Straightforward_Rook"]
[Black "Estrada Nieto, Julian"]
[BlackFideId "5101018"]
[WhiteElo "2363"]
[BlackElo "2525"]
[Result "1/2-1/2"]
[Round "11"]
[TimeControl "180+2"]
[Date "2023.06.27"]
[WhiteClock "0:00:19"]
[BlackClock "0:00:14"]
[Board "64"]

1. Nf3 {[%clk 0:03:00]}  d5 {[%clk 0:02:59]} 2. c4 {[%clk 0:02:58]}  d4 {[%clk 0:02:57]} 3. b4 {[%clk 0:02:53]}  c5 {[%clk 0:02:57]} 4. g3 {[%clk 0:02:51]}  cxb4 {[%clk 0:02:46]} 5. a3 {[%clk 0:02:50]}  bxa3 {[%clk 0:02:46]} 6. Bxa3 {[%clk 0:02:51]}  Nc6 {[%clk 0:02:46]} 7. d3 {[%clk 0:02:50]}  g6 {[%clk 0:02:41]} 8. Nbd2 {[%clk 0:02:48]}  Bg7 {[%clk 0:02:41]} 9. Nb3 {[%clk 0:02:48]}  Nh6 {[%clk 0:02:29]} 10. Bg2 {[%clk 0:02:45]}  O-O {[%clk 0:02:28]} 11. O-O {[%clk 0:02:42]}  Rb8 {[%clk 0:02:20]} 12. Bb2 {[%clk 0:02:41]}  Nf5 {[%clk 0:02:18]} 13. g4 {[%clk 0:02:41]}  Nd6 {[%clk 0:02:16]} 14. Nbxd4 {[%clk 0:02:35]}  Nxd4 {[%clk 0:02:10]} 15. Bxd4 {[%clk 0:02:36]}  Bxg4 {[%clk 0:02:09]} 16. Bxg7 {[%clk 0:02:32]}  Kxg7 {[%clk 0:02:08]} 17. Rxa7 {[%clk 0:02:32]}  Nf5 {[%clk 0:01:55]} 18. Qa1+ {[%clk 0:02:27]}  Kg8 {[%clk 0:01:52]} 19. Rb1 {[%clk 0:01:47]}  Bxf3 {[%clk 0:01:34]} 20. Bxf3 {[%clk 0:01:47]}  Nd4 {[%clk 0:01:34]} 21. Raxb7 {[%clk 0:01:20]}  Rxb7 {[%clk 0:01:31]} 22. Rxb7 {[%clk 0:01:21]}  Nxf3+ {[%clk 0:01:31]} 23. exf3 {[%clk 0:01:22]}  Qxd3 {[%clk 0:01:29]} 24. Rxe7 {[%clk 0:01:22]}  Qxf3 {[%clk 0:01:19]} 25. Qd4 {[%clk 0:01:16]}  Ra8 {[%clk 0:01:10]} 26. Re1 {[%clk 0:01:15]}  h5 {[%clk 0:01:07]} 27. c5 {[%clk 0:01:06]}  Rc8 {[%clk 0:01:00]} 28. Re3 {[%clk 0:00:55]}  Qf5 {[%clk 0:00:52]} 29. h4 {[%clk 0:00:45]}  Qg4+ {[%clk 0:00:39]} 30. Qxg4 {[%clk 0:00:42]}  hxg4 {[%clk 0:00:39]} 31. Rc3 {[%clk 0:00:39]}  f5 {[%clk 0:00:38]} 32. Kg2 {[%clk 0:00:37]}  Kf7 {[%clk 0:00:39]} 33. Kg3 {[%clk 0:00:37]}  Ke6 {[%clk 0:00:37]} 34. Kf4 {[%clk 0:00:37]}  Kd5 {[%clk 0:00:26]} 35. Kg5 {[%clk 0:00:34]}  Rc6 {[%clk 0:00:23]} 36. h5 {[%clk 0:00:20]}  gxh5 {[%clk 0:00:22]} 37. Kxf5 {[%clk 0:00:19]}  Kd4 {[%clk 0:00:19]} 38. Rc1 {[%clk 0:00:18]}  Kd3 {[%clk 0:00:14]} 39. Kg5 {[%clk 0:00:18]}  Ke2 {[%clk 0:00:14]} 40. Kxh5 {[%clk 0:00:17]}  Kxf2 {[%clk 0:00:13]} 41. Kxg4 {[%clk 0:00:18]}  Ke3 {[%clk 0:00:13]} 42. Kf5 {[%clk 0:00:18]}  Kd4 {[%clk 0:00:14]} 43. Kf4 {[%clk 0:00:18]}  Rxc5 {[%clk 0:00:14]} 44. Rxc5 {[%clk 0:00:19]}  Kxc5 {[%clk 0:00:14]} 1/2-1/2


[Site "https://www.chess.com"]

[Event "Titled Tuesday Blitz June 27 Late 2023"]
[White "Figorito, Nick"]
[Black "Ozates, Tuna"]
[WhiteFideId "30923689"]
[BlackFideId "6354521"]
[WhiteElo "2418"]
[BlackElo "2556"]
[Result "1-0"]
[Round "11"]
[TimeControl "180+2"]
[Date "2023.06.27"]
[WhiteClock "0:00:10"]
[BlackClock "0:00:07"]
[Board "67"]

1. Nf3 {[%clk 0:03:00]}  f5 {[%clk 0:02:54]} 2. e4 {[%clk 0:03:00]}  fxe4 {[%clk 0:02:54]} 3. Ng5 {[%clk 0:03:00]}  Nf6 {[%clk 0:02:54]} 4. d3 {[%clk 0:03:01]}  exd3 {[%clk 0:02:40]} 5. Bxd3 {[%clk 0:03:02]}  g6 {[%clk 0:02:40]} 6. h4 {[%clk 0:03:01]}  e5 {[%clk 0:02:26]} 7. h5 {[%clk 0:03:01]}  e4 {[%clk 0:02:25]} 8. Nxe4 {[%clk 0:02:25]}  Nxe4 {[%clk 0:02:23]} 9. Bxe4 {[%clk 0:02:25]}  Qe7 {[%clk 0:02:23]} 10. O-O {[%clk 0:02:25]}  Bg7 {[%clk 0:02:14]} 11. hxg6 {[%clk 0:02:22]}  O-O {[%clk 0:02:14]} 12. gxh7+ {[%clk 0:02:22]}  Kh8 {[%clk 0:02:14]} 13. Bd3 {[%clk 0:02:10]}  d5 {[%clk 0:02:11]} 14. c4 {[%clk 0:02:09]}  dxc4 {[%clk 0:02:08]} 15. Bxc4 {[%clk 0:02:08]}  Nc6 {[%clk 0:02:08]} 16. Nc3 {[%clk 0:02:00]}  Nd4 {[%clk 0:01:59]} 17. Be3 {[%clk 0:01:49]}  Qh4 {[%clk 0:01:57]} 18. g3 {[%clk 0:01:25]}  Qd8 {[%clk 0:01:26]} 19. Bxd4 {[%clk 0:01:23]}  Bxd4 {[%clk 0:01:25]} 20. Nb5 {[%clk 0:01:14]}  c5 {[%clk 0:01:23]} 21. Nxd4 {[%clk 0:01:08]}  cxd4 {[%clk 0:01:22]} 22. Bd3 {[%clk 0:01:05]}  Bh3 {[%clk 0:01:17]} 23. Re1 {[%clk 0:01:04]}  Qg5 {[%clk 0:01:07]} 24. Bf1 {[%clk 0:00:58]}  Bg4 {[%clk 0:00:49]} 25. Qxd4+ {[%clk 0:00:56]}  Kxh7 {[%clk 0:00:49]} 26. Bd3+ {[%clk 0:00:51]}  Kh6 {[%clk 0:00:47]} 27. Qe3 {[%clk 0:00:49]}  Bf3 {[%clk 0:00:44]} 28. Qxg5+ {[%clk 0:00:45]}  Kxg5 {[%clk 0:00:45]} 29. Be4 {[%clk 0:00:45]}  Bg4 {[%clk 0:00:33]} 30. Bxb7 {[%clk 0:00:42]}  Rab8 {[%clk 0:00:34]} 31. Re7 {[%clk 0:00:40]}  Rh8 {[%clk 0:00:30]} 32. f4+ {[%clk 0:00:26]}  Kf6 {[%clk 0:00:29]} 33. Rc7 {[%clk 0:00:26]}  Rxb7 {[%clk 0:00:28]} 34. Rxb7 {[%clk 0:00:26]}  Bf3 {[%clk 0:00:28]} 35. Rxa7 {[%clk 0:00:23]}  Kf5 {[%clk 0:00:29]} 36. Kf2 {[%clk 0:00:21]}  Bd5 {[%clk 0:00:23]} 37. Re1 {[%clk 0:00:16]}  Rh2+ {[%clk 0:00:21]} 38. Ke3 {[%clk 0:00:16]}  Rxb2 {[%clk 0:00:21]} 39. Kd4 {[%clk 0:00:13]}  Bf3 {[%clk 0:00:20]} 40. Re5+ {[%clk 0:00:13]}  Kg4 {[%clk 0:00:18]} 41. Rg5+ {[%clk 0:00:14]}  Kh3 {[%clk 0:00:18]} 42. Rh7+ {[%clk 0:00:14]}  Kg2 {[%clk 0:00:18]} 43. Ra7 {[%clk 0:00:10]}  Kf2 {[%clk 0:00:16]} 44. a4 {[%clk 0:00:10]}  Rd2+ {[%clk 0:00:16]} 45. Kc3 {[%clk 0:00:10]}  Rd8 {[%clk 0:00:15]} 46. a5 {[%clk 0:00:10]}  Ke3 {[%clk 0:00:16]} 47. a6 {[%clk 0:00:10]}  Rc8+ {[%clk 0:00:16]} 48. Kb4 {[%clk 0:00:11]}  Rb8+ {[%clk 0:00:12]} 49. Rb5 {[%clk 0:00:11]}  Rc8 {[%clk 0:00:12]} 50. Ka5 {[%clk 0:00:12]}  Be2 {[%clk 0:00:12]} 51. Rab7 {[%clk 0:00:11]}  Rc1 {[%clk 0:00:11]} 52. a7 {[%clk 0:00:10]}  Ra1+ {[%clk 0:00:07]} 53. Kb6 {[%clk 0:00:10]} 1-0


[Site "https://www.chess.com"]

[Event "Titled Tuesday Blitz June 27 Late 2023"]
[White "Romero Ruscalleda, Josep"]
[Black "Toniutti, Ezio"]
[WhiteFideId "2231859"]
[BlackFideId "113034"]
[WhiteElo "2382"]
[BlackElo "2468"]
[Result "0-1"]
[Round "11"]
[TimeControl "180+2"]
[Date "2023.06.27"]
[WhiteClock "0:01:34"]
[BlackClock "0:01:28"]
[Board "69"]

1. e4 {[%clk 0:02:36]}  e5 {[%clk 0:02:58]} 2. Nf3 {[%clk 0:02:36]}  Nc6 {[%clk 0:02:58]} 3. Bc4 {[%clk 0:02:36]}  Nf6 {[%clk 0:02:57]} 4. d4 {[%clk 0:02:36]}  exd4 {[%clk 0:02:57]} 5. e5 {[%clk 0:02:36]}  d5 {[%clk 0:02:56]} 6. Bb5 {[%clk 0:02:37]}  Ne4 {[%clk 0:02:55]} 7. Nxd4 {[%clk 0:02:37]}  Bc5 {[%clk 0:02:54]} 8. Be3 {[%clk 0:02:36]}  O-O {[%clk 0:02:53]} 9. Bxc6 {[%clk 0:02:36]}  bxc6 {[%clk 0:02:51]} 10. O-O {[%clk 0:02:36]}  Bd7 {[%clk 0:02:45]} 11. Nd2 {[%clk 0:02:36]}  Nxd2 {[%clk 0:02:36]} 12. Qxd2 {[%clk 0:02:36]}  Qe7 {[%clk 0:02:14]} 13. Rfe1 {[%clk 0:02:36]}  Qxe5 {[%clk 0:02:04]} 14. Nxc6 {[%clk 0:02:34]}  Bxe3 {[%clk 0:02:00]} 15. Nxe5 {[%clk 0:02:07]}  Bxd2 {[%clk 0:01:57]} 16. Nxd7 {[%clk 0:02:07]}  Bxe1 {[%clk 0:01:53]} 17. Nxf8 {[%clk 0:02:07]}  Bb4 {[%clk 0:01:49]} 18. Nd7 {[%clk 0:02:05]}  Bd6 {[%clk 0:01:49]} 19. Re1 {[%clk 0:01:54]}  f6 {[%clk 0:01:48]} 20. c4 {[%clk 0:01:43]}  dxc4 {[%clk 0:01:39]} 21. Rd1 {[%clk 0:01:41]}  Rd8 {[%clk 0:01:28]} 22. Nc5 {[%clk 0:01:35]}  Bxh2+ {[%clk 0:01:28]} 23. Kxh2 {[%clk 0:01:34]}  Rxd1 {[%clk 0:01:28]} 0-1


[Site "https://www.chess.com"]

[Event "Titled Tuesday Blitz June 27 Late 2023"]
[White "whiteglovethief"]
[Black "Perez Torres, Nabi Isaias"]
[BlackFideId "5120373"]
[WhiteElo "2459"]
[BlackElo "2339"]
[Result "1-0"]
[Round "11"]
[TimeControl "180+2"]
[Date "2023.06.27"]
[WhiteClock "0:01:17"]
[BlackClock "0:00:00"]
[Board "71"]

1. d4 {[%clk 0:02:59]}  Nf6 {[%clk 0:02:59]} 2. c4 {[%clk 0:02:59]}  g6 {[%clk 0:02:59]} 3. Nc3 {[%clk 0:02:59]}  Bg7 {[%clk 0:03:00]} 4. e4 {[%clk 0:02:59]}  d6 {[%clk 0:03:00]} 5. Nf3 {[%clk 0:03:00]}  O-O {[%clk 0:03:01]} 6. Be2 {[%clk 0:03:01]}  e5 {[%clk 0:03:01]} 7. O-O {[%clk 0:03:02]}  exd4 {[%clk 0:03:01]} 8. Nxd4 {[%clk 0:03:03]}  Re8 {[%clk 0:03:02]} 9. f3 {[%clk 0:03:02]}  Nc6 {[%clk 0:03:02]} 10. Nc2 {[%clk 0:03:01]}  Nh5 {[%clk 0:03:00]} 11. Kh1 {[%clk 0:03:00]}  Be5 {[%clk 0:02:53]} 12. f4 {[%clk 0:02:51]}  Bxc3 {[%clk 0:02:51]} 13. bxc3 {[%clk 0:02:51]}  Nf6 {[%clk 0:02:51]} 14. e5 {[%clk 0:02:46]}  dxe5 {[%clk 0:02:16]} 15. Qxd8 {[%clk 0:02:47]}  Rxd8 {[%clk 0:02:15]} 16. fxe5 {[%clk 0:02:48]}  Ng4 {[%clk 0:02:14]} 17. Bxg4 {[%clk 0:02:38]}  Bxg4 {[%clk 0:02:14]} 18. Bf4 {[%clk 0:02:35]}  Be2 {[%clk 0:02:08]} 19. Rfe1 {[%clk 0:02:28]}  Bxc4 {[%clk 0:02:07]} 20. a3 {[%clk 0:02:20]}  Rd3 {[%clk 0:01:50]} 21. Nb4 {[%clk 0:02:10]}  Rxc3 {[%clk 0:01:40]} 22. Nxc6 {[%clk 0:02:10]}  bxc6 {[%clk 0:01:41]} 23. Bg5 {[%clk 0:02:01]}  Rb8 {[%clk 0:01:32]} 24. Bf6 {[%clk 0:02:01]}  Bd5 {[%clk 0:01:27]} 25. e6 {[%clk 0:01:47]}  Rc2 {[%clk 0:01:17]} 26. e7 {[%clk 0:01:46]}  Re8 {[%clk 0:00:42]} 27. Rad1 {[%clk 0:01:39]}  Bxg2+ {[%clk 0:00:37]} 28. Kg1 {[%clk 0:01:38]}  Bd5 {[%clk 0:00:37]} 29. Rb1 {[%clk 0:01:37]}  Be6 {[%clk 0:00:26]} 30. Red1 {[%clk 0:01:30]}  Bd5 {[%clk 0:00:09]} 31. Rb7 {[%clk 0:01:27]}  Rg2+ {[%clk 0:00:08]} 32. Kf1 {[%clk 0:01:26]}  Rg4 {[%clk 0:00:07]} 33. Rd2 {[%clk 0:01:20]}  Rf4+ {[%clk 0:00:07]} 34. Rf2 {[%clk 0:01:21]}  Rxf2+ {[%clk 0:00:08]} 35. Kxf2 {[%clk 0:01:22]}  h5 {[%clk 0:00:07]} 36. Rxc7 {[%clk 0:01:18]}  Kh7 {[%clk 0:00:07]} 37. Rd7 {[%clk 0:01:18]}  c5 {[%clk 0:00:04]} 38. Rxd5 {[%clk 0:01:17]}  g5 {[%clk 0:00:00]} 39. Rd8 {[%clk 0:01:17]} 1-0


[Site "https://www.chess.com"]